fUSD/lending_fUSD_20250225
["ID","MTS","AMOUNT","RATE_DAILY","PERIOD"]
[354372750,1740460243665,-1748.751,0.00017084,2]
[354372751,1740460243676,-420.0,0.00017845,2]
[354372752,1740460243686,-1351.17037757,0.000179,2]
[354372753,1740460243695,-200.0,0.000184,2]
[354372754,1740460243704,-5113.54867287,0.00018869,2]
[354372755,1740460243716,-2467.23581103,0.00018869,2]
[354372762,1740460245990,-4351.89226735,0.00018869,2]
[354372763,1740460246006,-1351.17037756,0.00019314,2]
[354372764,1740460246021,-587.0,0.00019504,2]
[354372765,1740460246036,-1500.0,0.000197,2]
[354372766,1740460246052,-1351.17037756,0.00020728,2]
[354372767,1740460246068,-155.36,0.00020776,2]
[354372768,1740460246083,-823.0,0.00021318,2]
[354372769,1740460246098,-11932.67675125,0.00021373,2]
[354372770,1740460246113,-1351.17037756,0.00022141,3]
[354372771,1740460246129,-155.09,0.00022264,2]
[354372772,1740460246144,-577.39896618,0.00022832,2]
[354372773,1740460246159,-325.0,0.00023299,2]
[354372774,1740460246177,-218.62,0.00023502,2]
[354372775,1740460246193,-1351.17037756,0.00023555,3]
[354372776,1740460246210,-11932.67675125,0.00023877,2]
[354372778,1740460246229,-150.0,0.00024648,2]
[354372781,1740460246245,-1351.17037756,0.00024969,4]
[354372784,1740460246264,-200.0,0.00025277,2]
[354372786,1740460246279,-2000.0,0.00025506,2]
[354372788,1740460246296,-218.62,0.00025766,2]
[354372790,1740460246312,-11932.67675125,0.00026381,2]
[354372791,1740460246327,-1351.17037756,0.00026383,4]
[354372792,1740460246343,-155.42,0.00026488,30]
[354372793,1740460246360,-1632.54624736,0.00026489,2]
[354372794,1740460246380,-14833.31348389,0.00026489,2]
[354372795,1740460246715,-7434.14026875,0.00026489,2]
[354372796,1740460246731,-195.0,0.00027,120]
[354372797,1740460246746,-500.0,0.00027796,2]
[354372798,1740460246761,-500.0,0.00027796,2]
[354372799,1740460246776,-500.0,0.00027796,2]
[354372800,1740460246791,-500.0,0.00027796,2]
[354372801,1740460246807,-500.0,0.00027796,2]
[354372802,1740460246823,-500.0,0.00027796,2]
[354372803,1740460246837,-500.0,0.00027796,2]
[354372804,1740460246846,-500.0,0.00027796,2]
[354372805,1740460246855,-500.0,0.00027796,2]
[354372806,1740460246864,-500.0,0.00027796,2]
[354372807,1740460246873,-500.0,0.00027796,2]
[354372808,1740460246882,-500.0,0.00027796,2]
[354372809,1740460246891,-500.0,0.00027796,2]
[354372810,1740460246900,-500.0,0.00027796,2]
[354372811,1740460246909,-500.0,0.00027796,2]
[354372812,1740460246918,-500.0,0.00027796,2]
[354372813,1740460247209,-500.0,0.00027796,2]
[354372814,1740460247252,-500.0,0.00027796,2]
[354372815,1740460247265,-500.0,0.00027796,2]
[354372816,1740460247274,-500.0,0.00027796,2]
[354372817,1740460247283,-500.0,0.00027796,2]
[354372818,1740460247292,-500.0,0.00027796,2]
[354372819,1740460247303,-500.0,0.00027796,2]
[354372820,1740460247313,-500.0,0.00027796,2]
[354372821,1740460247323,-500.0,0.00027796,2]
[354372822,1740460247332,-500.0,0.00027796,2]
[354372823,1740460247341,-500.0,0.00027796,2]
[354372824,1740460247350,-500.0,0.00027796,2]
[354372825,1740460247359,-500.0,0.00027796,2]
[354372826,1740460247369,-500.0,0.00027796,2]
[354372827,1740460247378,-500.0,0.00027796,2]
[354372828,1740460247388,-500.0,0.00027796,2]
[354372829,1740460247397,-500.0,0.00027796,2]
[354372830,1740460247406,-500.0,0.00027796,2]
[354372831,1740460247415,-500.0,0.00027796,2]
[354372832,1740460247427,-500.0,0.00027796,2]
[354372833,1740460247436,-500.0,0.00027796,2]
[354372834,1740460247446,-500.0,0.00027796,2]
[354372835,1740460247455,-500.0,0.00027796,2]
[354372836,1740460247465,-518.0,0.00027796,2]
[354372837,1740460247475,-500.0,0.00027796,2]
[354372838,1740460247486,-500.0,0.00027796,2]
[354372839,1740460247495,-500.0,0.00027796,2]
[354372840,1740460247505,-500.0,0.00027796,2]
[354372841,1740460247514,-500.0,0.00027796,2]
[354372842,1740460247524,-500.0,0.00027796,2]
[354372843,1740460247534,-500.0,0.00027796,2]
[354372844,1740460247543,-500.0,0.00027796,2]
[354372845,1740460247552,-692.0,0.00027796,2]
[354372846,1740460247562,-1351.17037756,0.00027797,4]
[354372847,1740460247572,-218.62,0.0002803,2]
[354372848,1740460247581,-250.0,0.00028211,2]
[354372849,1740460247591,-227.71,0.00028273,120]
[354372850,1740460247600,-1000.0,0.000283,2]
[354372851,1740460247609,-11932.67675125,0.00028884,2]
[354372852,1740460247619,-155.09,0.00029012,2]
[354372853,1740460247628,-1000.0,0.00029056,2]
[354372854,1740460247637,-577.39896618,0.00029199,2]
[354372855,1740460247646,-1351.17037756,0.0002921,5]
[354372856,1740460247655,-146.72571661,0.00029995,30]
[354372857,1740460247685,-8.69428339,0.00029995,30]
[354372858,1740460247695,-12285.69122032,0.0003,10]
[354372859,1740460247705,-2096.8,0.0003,10]
[354372860,1740460247714,-218.62,0.00030294,2]
[354372861,1740460247723,-1351.17037756,0.00030624,5]
[354372862,1740460247733,-170.8,0.00030714,2]
[354372863,1740460247742,-1000.0,0.000309,2]
[354372864,1740460247752,-1332.49752071,0.00031,4]
[354372865,1740460247761,-800.0,0.00031,2]
[354372866,1740460247771,-166.36,0.0003107,2]
[354372867,1740460247782,-232.0,0.000313,2]
[354372868,1740460247792,-367.0,0.000313,2]
[354372869,1740460247802,-11932.67675125,0.00031388,2]
[354372870,1740460247811,-799.06447422,0.00031399,3]
[354372871,1740460247821,-155.57,0.000315,2]
[354372872,1740460247830,-3000.0,0.00031792,2]
[354372873,1740460247839,-3000.0,0.00031792,2]
[354372874,1740460247849,-3000.0,0.00031801,2]
[354372875,1740460247858,-155.57,0.00031815,2]
[354372876,1740460247868,-3000.0,0.0003182,2]
[354372877,1740460247878,-1393.53,0.00031844,2]
[354372878,1740460247887,-3000.0,0.00031875,2]
[354372879,1740460247897,-1351.17037756,0.00032038,6]
[354372880,1740460247906,-155.57,0.00032129,2]
[354372881,1740460247916,-155.57,0.00032444,2]
[354372882,1740460247927,-218.62,0.00032558,2]
[354372883,1740460247936,-250.41635842,0.0003259,3]
[354372884,1740460247946,-113899.7621458,0.000326,2]
[354372885,1740460247956,-1000.0,0.00032688,2]
[354372886,1740460247967,-155.57,0.00032759,2]
[354372887,1740460247977,-1000.0,0.00032785,2]
[354372888,1740460247987,-500.0,0.00033,90]
[354372889,1740460247997,-155.57,0.00033074,2]
[354372890,1740460248006,-155.57,0.00033389,2]
[354372891,1740460248016,-1351.17037756,0.00033452,6]
[354372892,1740460248026,-155.42,0.00033501,120]
[354372893,1740460248036,-500.0,0.000336,2]
[354372894,1740460248046,-2000.0,0.000337,2]
[354372895,1740460248056,-2000.0,0.000337,2]
[354372896,1740460248065,-2000.0,0.000337,2]
[354372897,1740460248075,-2067.2855,0.000337,2]
[354372898,1740460248085,-155.57,0.00033704,2]
[354372899,1740460248094,-11932.67675125,0.00033892,2]
[354372900,1740460248104,-150.0,0.00034003,7]
[354372901,1740460248114,-150.0,0.00034003,7]
[354372902,1740460248123,-150.0,0.00034003,7]
[354372903,1740460248133,-150.0,0.00034003,7]
[354372904,1740460248142,-155.57,0.00034019,2]
[354372905,1740460248152,-150.0,0.00034213,7]
[354372906,1740460248162,-150.0,0.00034255,7]
[354372907,1740460248172,-155.57,0.00034334,2]
[354372908,1740460248184,-1669.0,0.00034348,2]
[354372909,1740460248193,-150.0,0.00034423,7]
[354372910,1740460248204,-150.0,0.00034475,7]
[354372911,1740460248219,-150.0,0.00034506,7]
[354372912,1740460248229,-200.0,0.00034536,120]
[354372913,1740460248238,-150.0,0.00034548,10]
[354372914,1740460248248,-150.0,0.00034632,7]
[354372915,1740460248259,-155.57,0.00034649,2]
[354372916,1740460248269,-1669.0,0.00034702,2]
[354372917,1740460248279,-150.0,0.00034758,7]
[354372918,1740460248289,-500.0,0.00034766,120]
[354372919,1740460248299,-218.62,0.00034821,2]
[354372920,1740460248309,-150.0,0.00034842,7]
[354372921,1740460248319,-1351.17037756,0.00034866,7]
[354372922,1740460248330,-150.0,0.00034947,7]
[354372923,1740460248340,-155.57,0.00034964,2]
[354372924,1740460248349,-500.0,0.00035,90]
[354372925,1740460248359,-500.0,0.00035,90]
[354372926,1740460248368,-500.0,0.00035,90]
[354372927,1740460248378,-4818.86641291,0.00035,35]
[354372929,1740461120544,4759.00341792,9e-05,2]
[354372940,1740461327334,10652.11979972,0.0002,120]
[354372941,1740461363500,392.0525269,0.00021072,120]
[354372960,1740461432150,-441.04857979,9.828e-05,2]
[354372961,1740461432159,-358.95139021,9.973e-05,2]
[354372962,1740461432174,-141.04860979,9.973e-05,2]
[354372963,1740461432184,-1530.08381104,9.99e-05,2]
[354372964,1740461432195,-1091.82942086,9.99e-05,2]
[354372965,1740461432206,-41641.81562052,9.99e-05,2]
[354372966,1740461432216,-150.0,9.998e-05,2]
[354372967,1740461432225,-393.64219702,9.998e-05,2]
[354372968,1740461432234,-864.72532184,9.999e-05,2]
[354372969,1740461432244,-393.64219701,9.999e-05,2]
[354372970,1740461432253,-500.0,9.999e-05,2]
[354372971,1740461432262,-500.0,9.999e-05,2]
[354372972,1740461432272,-294.97633452,9.999e-05,2]
[354372973,1740461432282,-614.26833776,9.999e-05,2]
[354372974,1740461432292,-548.05475944,9.999e-05,2]
[354372975,1740461432301,-510.24669669,9.999e-05,2]
[354372976,1740461432310,-500.0,9.999e-05,2]
[354372977,1740461432320,-169807.4869098,0.0001,2]
[354372978,1740461432332,-864.10549473,0.0001,2]
[354372979,1740461432346,-1847.0730575,0.0001,2]
[354372980,1740461432358,-250.0,0.0001,2]
[354372981,1740461432370,-226941.13579769,0.0001,2]
[354372982,1740461432424,-651679.95320286,0.0001,2]
[354373001,1740461438126,-6518905.79116923,0.0001,2]
[354373002,1740461438136,-1681.15541266,0.0001,2]
[354373003,1740461438146,-3480252.37033031,0.0001,2]
[354373004,1740461438167,-305.70821101,0.0001,2]
[354373005,1740461438186,-4823.27885289,0.0001,2]
[354373006,1740461438312,-1167.91008124,0.0001,2]
[354373007,1740461438331,-41756.19657736,0.0001,2]
[354373008,1740461438379,-4633.15147471,0.0001,2]
[354373154,1740461440250,-52676.48010946,0.0001,2]
[354373173,1740461440416,-74681.79947815,0.0001,2]
[354373175,1740461440428,-1017.35519134,0.0001,2]
[354373449,1740461443104,-23069.43793839,0.0001,2]
[354373516,1740461443743,-500.0,0.0001,2]
[354373683,1740461446152,-9068.4486635,0.0001,2]
[354373686,1740461446163,-46024.51697922,0.0001,2]
[354373696,1740461912905,-150.0,9.8e-05,2]
[354373697,1740462139958,161.1,8.767e-05,2]
[354373708,1740462622658,3793.0,0.0002,120]
[354373730,1740462632945,-950.50976812,9.8e-05,2]
[354373732,1740462632956,-298.49123188,9.8e-05,2]
[354373734,1740462632966,-128.22681932,9.973e-05,2]
[354373737,1740462632986,-371.77318068,9.973e-05,2]
[354373739,1740462632995,-25905.14563534,0.0001,2]
[354373741,1740462633010,-451260.47343346,0.0001,2]
[354373744,1740462633039,-996.59053784,0.0001,2]
[354373745,1740462633051,-3961.95512933,0.0001,2]
[354373746,1740462633063,-5402.91999996,0.0001,2]
[354373747,1740462633075,-1766.6000005,0.0001,2]
[354373748,1740462633092,-4019.32691822,0.0001,2]
[354373749,1740462633109,-518.32839176,0.0001,2]
[354373750,1740462633185,-2821.48265851,0.0001,2]
[354373751,1740462633197,-3207.30363253,0.0001,2]
[354373752,1740462633209,-308.13345431,0.0001,2]
[354373753,1740462633229,-5623.75198783,0.0001,2]
[354373754,1740462633241,-970.77143134,0.0001,2]
[354373756,1740462638244,-1774.37970282,0.0001,2]
[354373757,1740462638255,-1040.67,0.0001,2]
[354373758,1740462638266,-712.33,0.0001,2]
[354373759,1740462638277,-13885.02116116,0.0001,2]
[354373760,1740462638288,-72641.70503603,0.0001,2]
[354373761,1740462638300,-9440.0,0.0001,2]
[354373762,1740462638310,-2297.805,0.0001,2]
[354373763,1740462638332,-664.28622,0.0001,2]
[354373764,1740462638343,-10736.77896251,0.0001,2]
[354373765,1740462638354,-487.64485839,0.0001,2]
[354373766,1740462638365,-646.53171669,0.0001,2]
[354373767,1740462638383,-252.90102083,0.0001,2]
[354373768,1740462638394,-6680.1714638,0.0001,2]
[354373769,1740462638404,-2437.59954358,0.0001,2]
[354373770,1740462638530,-2775.18108599,0.0001,2]
[354373771,1740462638553,-20000.0,0.0001,2]
[354373772,1740462638567,-2219.533677,0.0001,2]
[354373773,1740462638578,-1109.58021,0.0001,2]
[354373774,1740462638589,-417.93362683,0.0001,2]
[354373808,1740462640293,-655.19942337,0.0001,2]
[354373811,1740462640304,-2429.4141106,0.0001,2]
[354373813,1740462640315,-1651.46942379,0.0001,2]
[354373821,1740462640372,-947.72946,0.0001,2]
[354373823,1740462640383,-783.34611875,0.0001,2]
[354373825,1740462640394,-938.99999995,0.0001,2]
[354373832,1740462640451,-1138.6820049,0.0001,2]
[354373834,1740462640461,-620.02291574,0.0001,2]
[354373837,1740462640475,-654.839996,0.0001,2]
[354373839,1740462640487,-955.0,0.0001,2]
[354373841,1740462640498,-26340.36827717,0.0001,2]
[354373850,1740462640570,-19232.898044,0.0001,2]
[354373852,1740462640581,-500.0,0.0001,2]
[354373854,1740462640593,-577.46205938,0.0001,2]
[354373856,1740462640603,-6492.98264759,0.0001,2]
[354373859,1740462640615,-10310.28202644,0.0001,2]
[354373861,1740462640625,-504.4761614,0.0001,2]
[354373863,1740462640636,-428.18518005,0.0001,2]
[354373865,1740462640655,-666.82909112,0.0001,2]
[354373873,1740462643603,-485.305,0.0001,2]
[354373874,1740462643614,-1849.17996934,0.0001,2]
[354373877,1740462644482,-55979.90415979,0.0001,2]
[354373878,1740462644493,-14948.63452145,0.0001,2]
[354373879,1740462644511,-506.62630079,0.0001,2]
[354373880,1740462644522,-352.72799642,0.0001,2]
[354373881,1740462644533,-192999.99999994,0.0001,2]
[354373882,1740462644544,-76099.7436,0.0001,2]
[354373883,1740462644559,-8887.0000005,0.0001,2]
[354373884,1740462644570,-61653.07095395,0.0001,2]
[354373885,1740462644581,-2046.02602009,0.0001,2]
[354373886,1740462644606,-631.44,0.0001,2]
[354373887,1740462644623,-1356.4999996,0.0001,2]
[354373888,1740462644637,-643.3159777,0.0001,2]
[354373889,1740462644648,-547.25000032,0.0001,2]
[354373890,1740462644675,-1244.38494573,0.0001,2]
[354373891,1740462644861,-19852.51822778,0.0001,2]
[354373898,1740462646353,-467.96961399,0.0001,2]
[354373899,1740462646364,-4775.04460253,0.0001,2]
[354373900,1740462646383,-786.46821168,0.0001,2]
[354373901,1740462646402,-1081.03146575,0.0001,2]
[354373902,1740462646504,-7859.3074707,0.0001,2]
[354373903,1740462646515,-1444.60801113,0.0001,2]
[354373904,1740462646527,-851.19,0.0001,2]
[354373905,1740462646613,-16217.62646775,0.0001,2]
[354373906,1740462646624,-18475.18592585,0.0001,2]
[354373907,1740462646711,-251.10073731,0.0001,2]
[354373908,1740462646723,-112030.64668046,0.0001,2]
[354373910,1740462795331,20209.69677139,0.0002,120]
[354373911,1740462795361,27654.0,0.0002,120]
[354373912,1740462816213,10000.0,0.00019711,120]
[354373913,1740462821373,10000.0,0.00019711,120]
[354373914,1740462826437,10000.0,0.00019711,120]
[354373915,1740462839089,684.0,0.00019711,120]
[354373917,1740463470642,155.47,8.767e-05,2]
[354373918,1740463552763,-300.0,9.899e-05,2]
[354373919,1740463552784,-200.0,9.9e-05,2]
[354373920,1740463588204,-300.0,9.899e-05,2]
[354373921,1740463588226,-200.0,9.9e-05,2]
[354373922,1740463607367,-500.0,9.9e-05,2]
[354373939,1740463831650,-59010.09107387,9.9e-05,2]
[354373940,1740463831663,-1137.88088739,9.9e-05,2]
[354373941,1740463831780,-1792.01967,9.9e-05,2]
[354373942,1740463831863,-10280.00026439,9.9e-05,2]
[354373945,1740463831875,-1006.846155,9.9e-05,2]
[354373947,1740463831887,-16153.425467,9.9e-05,2]
[354373949,1740463831898,-508.47198714,9.9e-05,2]
[354373953,1740463837431,-1340.17476812,9.9e-05,2]
[354373954,1740463837443,-1510.92569718,9.9e-05,2]
[354373955,1740463837535,-5693.1281407,9.9e-05,2]
[354373956,1740463837546,-628.475,9.9e-05,2]
[354373957,1740463837646,-1249.3,9.9e-05,2]
[354373958,1740463837658,-6269.49777717,9.9e-05,2]
[354373981,1740463839693,-5248.93011204,9.9e-05,2]
[354373982,1740463839702,-3221.842,9.9e-05,2]
[354373983,1740463839714,-478.2876157,9.9e-05,2]
[354373984,1740463841759,-924.97213755,9.9e-05,2]
[354373999,1740463842552,-5344.50248149,9.9e-05,2]
[354374000,1740463842563,-554.202,9.9e-05,2]
[354374024,1740463843907,-3823.43197383,9.9e-05,2]
[354374025,1740463843918,-1.43979143,9.9e-05,2]
[354374026,1740463843926,-922.65379675,9.9e-05,2]
[354374028,1740463845856,-77.34620325,9.9e-05,2]
[354374029,1740463845866,-145.08091673,9.9e-05,2]
[354374031,1740463845880,-307.59580023,9.9e-05,2]
[354374033,1740463876923,-150.0,9.8e-05,2]
[354374044,1740464495215,-510.2305526,9.89e-05,2]
[354374045,1740464495242,-300.0,9.899e-05,2]
[354374046,1740464495268,-74.63298304,9.9e-05,2]
[354374047,1740464495296,-14588.0716,9.9e-05,2]
[354374048,1740464495321,-538.9305,9.9e-05,2]
[354374049,1740464495345,-16134.6002,9.9e-05,2]
[354374050,1740464495370,-8024.305894,9.9e-05,2]
[354374051,1740464495395,-9829.22827036,9.9e-05,2]
[354374052,1740464498699,-11411.35102964,9.9e-05,2]
[354374053,1740464498728,-925.3381,9.9e-05,2]
[354374054,1740464498753,-608.170488,9.9e-05,2]
[354374055,1740464498783,-393.64219701,9.9e-05,2]
[354374056,1740464498812,-2500.0,9.9e-05,2]
[354374057,1740464499028,-162.40676104,9.973e-05,2]
[354374058,1740464499054,-510.01979256,9.973e-05,2]
[354374059,1740464499084,-600.8325841,9.992e-05,2]
[354374060,1740464499108,-2403.3303364,9.992e-05,2]
[354374061,1740464499134,-416.5772583,9.992e-05,2]
[354374062,1740464499159,-6929.5855234,9.992e-05,2]
[354374063,1740464499184,-250.38524348,9.999e-05,2]
[354374064,1740464499210,-1318.04862862,9.999e-05,3]
[354374065,1740464499237,-21570.31205745,0.0001,2]
[354374072,1740464736338,484.53,8e-05,2]
[354374073,1740464736366,3923.10656943,8e-05,2]
[354374074,1740464736391,7522.312351,8e-05,2]
[354374075,1740464754758,151.76,8.767e-05,2]
[354374077,1740464766724,332.27992075,8e-05,2]
[354374101,1740464903285,-2644.7669,9.9e-05,2]
[354374102,1740464903310,-1708.4371,9.9e-05,2]
[354374103,1740464918354,-150.0,9.946e-05,2]
[354374104,1740464918378,-302.31650685,9.99e-05,2]
[354374105,1740464918403,-556.5202707,9.992e-05,2]
[354374106,1740464918426,-893.00430511,9.992e-05,2]
[354374107,1740464918449,-2226.0810827,9.993e-05,2]
[354374108,1740464918473,-2372.07783464,9.993e-05,2]
[354374109,1740464994571,557.9844,9.9e-05,2]
[354374112,1740465031832,-475.75446201,9.9e-05,2]
[354374115,1740465031859,-1466.26113799,9.9e-05,2]
[354374117,1740465031870,-300.0,9.991e-05,2]
[354374119,1740465031879,-2261.2435049,9.992e-05,2]
[354374121,1740465031889,-2031.2153342,9.992e-05,2]
[354374123,1740465031901,-385.8540544,9.993e-05,2]
[354374124,1740465031911,-1518.2913797,9.993e-05,2]
[354374125,1740465031920,-6520.3829989,9.993e-05,2]
[354374126,1740465031930,-2063.3846982,9.993e-05,2]
[354374127,1740465031940,-1865.5258915,9.993e-05,2]
[354374128,1740465031949,-1667.6670848,9.993e-05,2]
[354374129,1740465031958,-1853.4839924,9.993e-05,2]
[354374130,1740465031968,-1675.7526507,9.993e-05,2]
[354374131,1740465031977,-1498.021309,9.993e-05,2]
[354374132,1740465031987,-191.71039881,9.999e-05,2]
[354374133,1740465031999,-47306.34876219,0.0001,2]
[354374134,1740465032011,-123493.30834535,0.0001,2]
[354374135,1740465032022,-963.75,0.0001,2]
[354374136,1740465032052,-1209.496,0.0001,2]
[354374137,1740465032063,-9757.12817506,0.0001,2]
[354374138,1740465032074,-317.2,0.0001,2]
[354374139,1740465032087,-15655.99891127,0.0001,2]
[354374140,1740465032101,-520.41993916,0.0001,2]
[354374141,1740465032178,-250525.33528161,0.0001,2]
[354374142,1740465032190,-98188.91628188,0.0001,2]
[354374143,1740465032237,-507.27736603,0.0001,2]
[354374144,1740465032251,-5186.06402337,0.0001,2]
[354374173,1740465037909,-275075.45674038,0.0001,2]
[354374174,1740465037918,-168.3984282,0.0001,2]
[354374175,1740465037927,-47132.36517152,0.0001,2]
[354374176,1740465037936,-187.88188896,0.0001,2]
[354374177,1740465037945,-5516414.76350726,0.0001,2]
[354374178,1740465037954,-6825.8542665,0.0001,2]
[354374179,1740465037963,-332.8912856,0.0001,2]
[354374180,1740465037972,-349.50162419,0.0001,2]
[354374181,1740465037981,-692.02886,0.0001,2]
[354374182,1740465037991,-1681.15541266,0.0001,2]
[354374183,1740465038001,-3562487.74557547,0.0001,2]
[354374185,1740465038010,-235.19068296,0.0001,2]
[354374187,1740465038019,-5465.54245875,0.0001,2]
[354374189,1740465038028,-313.45501862,0.0001,2]
[354374191,1740465038037,-249.42987404,0.000101,2]
[354374193,1740465038046,-198.74323438,0.00010136,2]
[354374195,1740465038055,-152.39,0.00010681,2]
[354374196,1740465038064,-500.0,0.0001078,2]
[354374198,1740465038073,-152.39,0.00010805,2]
[354374200,1740465038083,-500.0,0.00010889,2]
[354374202,1740465038092,-150.0,0.0001089,2]
[354374204,1740465038101,-150.0,0.0001089,2]
[354374206,1740465038110,-150.0,0.0001089,2]
[354374208,1740465038120,-167.37052764,0.000109,2]
[354374209,1740465038129,-167.37052758,0.000109,2]
[354374211,1740465038138,-167.37052758,0.000109,2]
[354374213,1740465038147,-167.37052758,0.000109,2]
[354374215,1740465038156,-167.37052758,0.000109,2]
[354374217,1740465038166,-167.37052758,0.000109,2]
[354374219,1740465038175,-1603.48132247,0.00010925,2]
[354374221,1740465038185,-152.39,0.00010928,2]
[354374223,1740465038193,-167.37052758,0.00010951,2]
[354374225,1740465038203,-200.0,0.00010959,2]
[354374227,1740465038212,-612.37,0.00010962,2]
[354374229,1740465038221,-420.0,0.0001099,2]
[354374231,1740465038229,-16876.52847751,0.00011,2]
[354374232,1740465038239,-152.39,0.00011051,2]
[354374234,1740465038249,-466.472,0.00011051,2]
[354374236,1740465038258,-466.472,0.00011051,2]
[354374238,1740465038268,-466.472,0.00011051,2]
[354374240,1740465038277,-466.472,0.00011051,2]
[354374242,1740465038286,-466.472,0.00011051,2]
[354374244,1740465038295,-466.472,0.00011051,2]
[354374246,1740465038304,-466.472,0.00011051,2]
[354374248,1740465038313,-466.472,0.00011051,2]
[354374249,1740465038321,-466.472,0.00011051,2]
[354374251,1740465038330,-466.472,0.00011051,2]
[354374253,1740465038340,-93012.67474138,0.00011099,2]
[354374255,1740465038350,-39670.80682645,0.00011099,2]
[354374257,1740465038359,-166.24,0.00011161,2]
[354374258,1740465038368,-152.39,0.00011174,2]
[354374260,1740465038377,-152.39,0.00011297,2]
[354374262,1740465038387,-152.39,0.00011421,2]
[354374264,1740465038396,-220.0,0.00011507,2]
[354374266,1740465038405,-152.39,0.00011544,2]
[354374268,1740465038415,-152.39,0.00011667,2]
[354374270,1740465038423,-152.39,0.0001179,2]
[354374272,1740465038432,-152.39,0.00011914,2]
[354374273,1740465038441,-151.472124,0.00011999,2]
[354374275,1740465038450,-152.39,0.00012037,2]
[354374277,1740465038459,-9999.99,0.00012087,2]
[354374279,1740465038469,-1399.05,0.00012087,2]
[354374281,1740465038478,-1263.06,0.00012087,2]
[354374283,1740465038487,-2815.07,0.00012087,2]
[354374284,1740465038496,-999.99,0.00012087,2]
[354374285,1740465038507,-9999.99,0.00012087,2]
[354374286,1740465038516,-150.99,0.00012087,2]
[354374287,1740465038525,-150.99,0.00012087,2]
[354374288,1740465038534,-631.31,0.00012087,2]
[354374289,1740465038544,-14900.23,0.00012087,2]
[354374290,1740465038553,-587.0,0.00012089,2]
[354374291,1740465038563,-152.39,0.0001216,2]
[354374292,1740465038572,-152.39,0.00012283,2]
[354374299,1740465038743,-937.1459248,0.000123,2]
[354374301,1740465038753,-692.02886,0.000124,2]
[354374303,1740465038763,-937.14592467,0.00012452,2]
[354374305,1740465038773,-323.81,0.00012623,2]
[354374307,1740465038782,-3500.0,0.00013,2]
[354374309,1740465038796,-4245.42200386,0.00013,2]
[354374311,1740465038806,-700.68643301,0.00013,2]
[354374313,1740465038821,-152.04,0.00013,2]
[354374315,1740465038830,-152.04,0.00013,2]
[354374317,1740465038840,-152.04,0.00013,2]
[354374319,1740465038855,-152.04,0.00013,2]
[354374321,1740465038865,-152.04,0.00013,2]
[354374323,1740465038874,-152.04,0.00013,2]
[354374326,1740465038884,-152.04,0.00013,2]
[354374328,1740465038896,-152.04,0.00013,2]
[354374330,1740465038906,-152.04,0.00013,2]
[354374332,1740465038915,-152.04,0.00013,2]
[354374334,1740465038925,-152.04,0.00013,2]
[354374336,1740465038935,-152.04,0.00013,2]
[354374338,1740465038944,-152.04,0.00013,2]
[354374340,1740465038954,-152.04,0.00013,2]
[354374342,1740465038963,-152.04,0.00013,2]
[354374344,1740465038973,-152.04,0.00013,2]
[354374346,1740465038983,-152.04,0.00013,2]
[354374348,1740465038993,-152.04,0.00013,2]
[354374350,1740465039002,-152.04,0.00013,2]
[354374352,1740465039011,-152.04,0.00013,2]
[354374354,1740465039021,-152.04,0.00013,2]
[354374356,1740465039030,-152.04,0.00013,2]
[354374358,1740465039040,-152.04,0.00013,2]
[354374359,1740465039049,-152.04,0.00013,2]
[354374360,1740465039058,-152.04,0.00013,2]
[354374361,1740465039067,-152.04,0.00013,2]
[354374362,1740465039077,-152.04,0.00013,2]
[354374363,1740465039086,-152.04,0.00013,2]